Workbook

Sheet User Interface
A1: USER INPUTS
A3: Select mode: | C3: Extended | D3: =IF(EXACT("Standard",C3),"Configured for 100 or 200 series RC-timed TPUL devices.",IF(EXACT("Extended",C3),"Configured for 300 or 400 series RC-timed TPUL devices.","")) -> Configured for 300 or 400 series RC-timed TPUL devices.
A5: Input Supply and RC values, get K factor and pulse width
C6: Component Tolerance
A7: Supply Voltage: | C7: 0 | D7: 3.3 | E7: V | F7: =IF(OR(D7<1.5,D7>5.5),"Please input a voltage between 1.5V and 5.5V","") -> 
A8: Timing Resistor: | C8: 0 | D8: 1000000 | E8: Ω | F8: =IF(OR(D8<1000,D8>1000000),"Please input a resistance between 1kohm and 1Mohm","") -> 
A9: Timing Capacitor: | C9: 0 | D9: 1e-05 | E9: F | F9: =IF(OR(D9<0.0000000001,D9>0.000001),"Please input a capacitance between 100pF and 1uF","") -> Please input a capacitance between 100pF and 1uF
L10: K Factor | M10: tw (s) | N10: Tolerance error range(1) | P10: tw(min) (s) | Q10: tw(max) (s)
B11: K Factor | C11: tw (s) | D11: Tolerance error range(1) | F11: tw(min) (s) | G11: tw(max) (s) | M11: =C12*1024 -> 9257804.104 | P11: =F12*1024 -> 8609757.816 | Q11: 9905850.391
B12: =Kcalc(D7,D8,D9) -> 0.882893 | C12: =B12*D8*D9*IF(EXACT(C3,"Standard"),1,1024) -> 9040.82432 | D12: =IFERROR(tol3min(D7,D8,D9,C7,C8,C9),"Out of range") -> -0.07 | E12: =IFERROR(tol3max(D7,D8,D9,C7,C8,C9),"") -> 0.07 | F12: =D12*C12+C12 -> 8407.966618 | G12: =C12*E12+C12 -> 9673.682022
A16: Input Supply & Pulse width, get suggested RC combinations
A18: SUPPLY VOLTAGE: | D18: 2.5 | E18: V | F18: =IF(IFERROR(MATCH(D18,REF!I2:I7,0),-1)<0,"Please input one of these values: 1.5, 1.8, 2.5, 3.3, 5, 5.5.","") -> 
A19: DESIRED PULSE WIDTH: | D19: 0.001 | E19: s
B21: VCC | C21: Cext (F) | D21: Rext (Ω) | E21: tw (s) | F21: tw Error(2) | N21: K Factor | O21: Rext | P21: tw
B22: =$D$18 -> 2.5 | C22: 1e-11 | D22: =IF(EXACT(P22,""),"",($D$19/IF(EXACT($C$3,"Standard"),1,1024))/(Kcalc(B22,O22,C22)*C22)) -> 62029.30634 | E22: =IF(EXACT(P22,""),"",Kcalc(B22,D22,C22)*IF(EXACT($C$3,"Standard"),1,1024)*D22*C22) -> 0.0009750044084 | F22: =IF(EXACT(P22,""),"",(E22-$D$19)/$D$19) -> -0.02499559164 | N22: =Kcalc(B22,10000,C22)*IF(EXACT($C$3,"Standard"),1,1024) -> 2160.64 | O22: =IF(OR($D$19/(C22*N22)<1200,$D$19/(C22*N22)>950000),"-",$D$19/(C22*N22)) -> 46282.58294 | P22: =IF(EXACT(O22,"-"),"",Kcalc(B22,O22,C22)*O22*C22*IF(EXACT($C$3,"Standard"),1,1024)) -> 0.0007461405853
B23: 2.5 | C23: 5e-11 | D23: =IF(EXACT(P23,""),"",($D$19/IF(EXACT($C$3,"Standard"),1,1024))/(Kcalc(B23,O23,C23)*C23)) -> 14823.30218 | E23: =IF(EXACT(P23,""),"",Kcalc(B23,D23,C23)*IF(EXACT($C$3,"Standard"),1,1024)*D23*C23) -> 0.0009970066028 | F23: =IF(EXACT(P23,""),"",(E23-$D$19)/$D$19) -> -0.002993397202 | N23: =Kcalc(B23,10000,C23)*IF(EXACT($C$3,"Standard"),1,1024) -> 1388.544 | O23: =IF(OR($D$19/(C23*N23)<1200,$D$19/(C23*N23)>950000),"-",$D$19/(C23*N23)) -> 14403.5767 | P23: =IF(EXACT(O23,"-"),"",Kcalc(B23,O23,C23)*O23*C23*IF(EXACT($C$3,"Standard"),1,1024)) -> 0.0009716847519
B24: 2.5 | C24: 1e-10 | D24: 7654.061688 | E24: 0.001000579425 | F24: 0.0005794245001 | N24: 1280 | O24: 7812.5 | P24: 0.0010206999
B25: 2.5 | C25: 1e-09 | N25: 1044.48 | O25: -
B26: 2.5 | C26: 1e-08 | N26: 961.536 | O26: -
B27: 2.5 | C27: 1e-07 | N27: 927.01184 | O27: -
B28: 2.5 | C28: 1e-06 | N28: 919.213056 | O28: -
A32: Input RC, get pulse width for all supply values
A34: Timing Resistor: | C34: 10000 | D34: Ω | E34: =IF(OR(C34<1000,C34>1000000),"Please input a resistance between 1kohm and 1Mohm","") -> 
A35: Timing Capacitor: | C35: 1e-06 | D35: F | E35: =IF(OR(C35<0.0000000001,C35>0.000001),"Please input a capacitance between 100pF and 1uF","") -> 
B37: VCC | C37: Cext (F) | D37: Rext (Ω) | E37: K Factor | F37: tw (s)
B38: 1.5 | C38: =$C$35 -> 1e-06 | D38: =$C$34 -> 10000 | E38: =Kcalc(B38,D38,C38) -> 0.912052 | F38: =E38*D38*C38*IF(EXACT($C$3,"Standard"),1,1024) -> 9.33941248
B39: 1.8 | C39: 1e-06 | D39: 10000 | E39: 0.894968 | F39: =E39*D39*C39*IF(EXACT($C$3,"Standard"),1,1024) -> 9.16447232
B40: 2.5 | C40: 1e-06 | D40: 10000 | E40: 0.897669 | F40: 9.19213056
B41: 3.3 | C41: 1e-06 | D41: 10000 | E41: 0.892708 | F41: 9.14132992
B42: 5 | C42: 1e-06 | D42: 10000 | E42: 0.881044 | F42: 9.02189056
B43: 5.5 | C43: 1e-06 | D43: 10000 | E43: 0.872996 | F43: 8.93947904
A46: (1) "Tolerance error range" calculates the expected typical (TA = 25°C) pulse width at each possible corner case from the provided tolerances, then selects the worst-case values to display. Value includes the expected worst-case internal error for the TPUL device across process and temperature variations.
A47: (2) "tw Error" indicates the difference in expected typical (TA = 25°C) pulse width from the requested output pulse width.

Sheet Custom
A1: If you want to make a custom use of the interpolation function:
A2: Function is Kcalc( VCC, Rext, Cext )
A3: Arguments:
B4: VCC value in V
B5: Rext value in ohms
B6: Cext value in F
A8: Example use:
A9: K Factor (K): | C9: Kcalc(3.6, 10E3, 10E-9) | F9: =Kcalc(3.6, 10000, 0.00000001) -> 0.9302941176
A10: Pulse width (tw): | C10: K * R * C | F10: =F9*10000*0.00000001 -> 9.302941176e-05
C13: C
B14: R | C14: 1e-05 | D14: 1e-06 | E14: 1e-07 | F14: 1e-08 | G14: 1e-09 | H14: 1e-10 | I14: 1e-11
A15: 1 | B15: =A15*1000 -> 1000 | C15: =Kcalc(3.3,$B15,C$14)*$B15*C$14 -> 0.00951283 | D15: 0.000951283 | E15: 9.95e-05 | F15: 1.03e-05 | G15: 1.14e-06 | H15: 1.68e-07 | I15: 5.81e-08
A16: 1.5 | B16: 1500 | C16: 0.0141142005 | D16: 0.00141142005 | E16: 0.000144301995 | F16: 1.48999995e-05 | G16: 1.6300005e-06 | H16: 2.2699995e-07 | I16: 6.5200005e-08
A17: 2.2 | B17: 2200 | C17: 0.0203583468 | D17: 0.00203583468 | E17: 0.000207236172 | F17: 2.1252e-05 | G17: 2.34168e-06 | H17: 3.11212e-07 | I17: 7.953e-08
A18: 3.3 | B18: 3300 | C18: 0.03012282042 | D18: 0.003012282042 | E18: 0.0003061239786 | F18: 3.146628672e-05 | G18: 3.41942898e-06 | H18: 4.38554358e-07 | I18: 9.6240573e-08
A19: 4.7 | B19: 4700 | C19: 0.04249733608 | D19: 0.004249733608 | E19: 0.000431710416 | F19: 4.428026604e-05 | G19: 4.83410698e-06 | H19: 6.04232094e-07 | I19: 1.169359906e-07
A20: 6.8 | B20: 6800 | C20: 0.06119679448 | D20: 0.006119679448 | E20: 0.0006207922776 | F20: 6.392e-05 | G20: 6.90596032e-06 | H20: 8.49297424e-07 | I20: 1.468500936e-07
A21: 1 | B21: =A21*10000 -> 10000 | C21: 0.0892708 | D21: 0.00892708 | E21: 0.000906557 | F21: 9.34e-05 | G21: 1.01e-05 | H21: 1.22e-06 | I21: 1.94e-07
A22: 1.5 | B22: 15000 | C22: 0.134035995 | D22: 0.0134035995 | E22: 0.0013542 | F22: 0.000139747995 | G22: 1.5100005e-05 | H22: 1.8e-06 | I22: 2.64e-07
A23: 2.2 | B23: 22000 | C23: 0.196238372 | D23: 0.0196238372 | E23: 0.00198668844 | F23: 0.000204741064 | G23: 2.19648e-05 | H23: 2.6158e-06 | I23: 3.62692e-07
A24: 3.3 | B24: 33000 | C24: 0.2937535458 | D24: 0.02937535458 | E24: 0.002973152886 | F24: 0.0003066375642 | G24: 3.30565686e-05 | H24: 3.88960044e-06 | I24: 5.17879956e-07
A25: 4.7 | B25: 47000 | C25: =Kcalc(3.3,$B25,C$14)*$B25*C$14 -> 0.4170916676 | D25: 0.04170916676 | E25: 0.004230421214 | F25: 0.0004362151498 | G25: 4.676186792e-05 | H25: 5.51717396e-06 | I25: 7.15778698e-07
A26: 6.8 | B26: 68000 | C26: 0.6051774648 | D26: 0.06051774648 | E26: 0.006122845664 | F26: 0.0006291280168 | G26: 6.789986592e-05 | H26: 7.95226136e-06 | I26: 1.003739976e-06
A27: 1 | B27: =A27*100000 -> 100000 | C27: 0.888157 | D27: 0.0888157 | E27: 0.00899561 | F27: 0.000925104 | G27: 0.000100054 | H27: 1.17e-05 | I27: 1.46e-06
A28: 1.5 | B28: 150000 | C28: 1.32802005 | D28: 0.132802005 | E28: 0.0134638995 | F28: 0.00139062 | G28: 0.00015025695 | H28: 1.74e-05 | I28: 2.1499995e-06
A29: 2.2 | B29: 220000 | C29: 1.95104976 | D29: 0.195104976 | E29: 0.0197514416 | F29: 0.0020377742 | G29: 0.000219700712 | H29: 2.55508e-05 | I29: 3.11696e-06
A30: 3.3 | B30: 330000 | C30: 2.926021428 | D30: 0.2926021428 | E30: 0.02961886356 | F30: 0.003054315858 | G30: 0.0003297646902 | H30: 3.80537058e-05 | I30: 4.63759956e-06
A31: 4.7 | B31: 470000 | C31: 4.166794494 | D31: 0.4166794494 | E31: 0.04214758182 | F31: 0.004356406312 | G31: 0.0004695068008 | H31: 5.44824e-05 | I31: 6.59002604e-06
A32: 6.8 | B32: 680000 | C32: 6.038219936 | D32: 0.6038219936 | E32: 0.06097082504 | F32: 0.006284582168 | G32: 0.000680231336 | H32: 7.91968256e-05 | I32: 9.49832976e-06
A33: 1 | B33: 1000000 | C33: 8.82893 | D33: 0.882893 | E33: 0.0899454 | F33: 0.00927744 | G33: 0.00100136 | H33: 0.000116618 | I33: 1.39e-05

Sheet REF
A1: KEY | B1: VCC | C1: Rext | D1: Cext | E1: K Factor | G1: R Vals | H1: C Vals | I1: VCC Vals | J1: Error | L1: Mode
A2: =B2&C2&D2 -> 1.510000.00000000001 | B2: 1.5 | C2: 1000 | D2: 1e-11 | E2: 17.7 | G2: 1000 | H2: 1e-11 | I2: 1.5 | J2: 0.1 | L2: Standard
A3: 1.510000.00000000005 | B3: 1.5 | C3: 1000 | D3: 5e-11 | E3: 3.96 | G3: 1500 | H3: 5e-11 | I3: 1.8 | J3: 0.09 | L3: Extended
A4: 1.510000.0000000001 | B4: 1.5 | C4: 1000 | D4: 1e-10 | E4: 2.55 | G4: 2000 | H4: 1e-10 | I4: 2.5 | J4: 0.08
A5: 1.510000.000000001 | B5: 1.5 | C5: 1000 | D5: 1e-09 | E5: 1.4 | G5: 2500 | H5: 1e-09 | I5: 3.3 | J5: 0.07
A6: 1.510000.00000001 | B6: 1.5 | C6: 1000 | D6: 1e-08 | E6: 1.2 | G6: 3000 | H6: 1e-08 | I6: 5 | J6: 0.05
A7: 1.510000.0000001 | B7: 1.5 | C7: 1000 | D7: 1e-07 | E7: 1.14197 | G7: 3500 | H7: 1e-07 | I7: 5.5 | J7: 0.05
A8: 1.510000.000001 | B8: 1.5 | C8: 1000 | D8: 1e-06 | E8: 0.925296 | G8: 4000 | H8: 1e-06
A9: 1.515000.00000000001 | B9: 1.5 | C9: 1500 | D9: 1e-11 | E9: 11.53333 | G9: 4500
A10: 1.515000.00000000005 | B10: 1.5 | C10: 1500 | D10: 5e-11 | E10: 3 | G10: 5000
A11: 1.515000.0000000001 | B11: 1.5 | C11: 1500 | D11: 1e-10 | E11: 2.226667 | G11: 5500
A12: 1.515000.000000001 | B12: 1.5 | C12: 1500 | D12: 1e-09 | E12: 1.266667 | G12: 6000
A13: 1.515000.00000001 | B13: 1.5 | C13: 1500 | D13: 1e-08 | E13: 1.1 | G13: 6500
A14: 1.515000.0000001 | B14: 1.5 | C14: 1500 | D14: 1e-07 | E14: 1.04004 | G14: 7000
A15: 1.515000.000001 | B15: 1.5 | C15: 1500 | D15: 1e-06 | E15: 1.012747 | G15: 7500
A16: 1.520000.00000000001 | B16: 1.5 | C16: 2000 | D16: 1e-11 | E16: 8.65 | G16: 8000
A17: 1.520000.00000000005 | B17: 1.5 | C17: 2000 | D17: 5e-11 | E17: 2.75 | G17: 8500
A18: 1.520000.0000000001 | B18: 1.5 | C18: 2000 | D18: 1e-10 | E18: 1.975 | G18: 9000
A19: 1.520000.000000001 | B19: 1.5 | C19: 2000 | D19: 1e-09 | E19: 1.205 | G19: 9500
A20: 1.520000.00000001 | B20: 1.5 | C20: 2000 | D20: 1e-08 | E20: 1.05 | G20: 10000
A21: 1.520000.0000001 | B21: 1.5 | C21: 2000 | D21: 1e-07 | E21: 0.998795 | G21: 10500
A22: 1.520000.000001 | B22: 1.5 | C22: 2000 | D22: 1e-06 | E22: 0.97741 | G22: 15000
A23: 1.525000.00000000001 | B23: 1.5 | C23: 2500 | D23: 1e-11 | E23: 7 | G23: 20000
A24: 1.525000.00000000005 | B24: 1.5 | C24: 2500 | D24: 5e-11 | E24: 2.464 | G24: 25000
A25: 1.525000.0000000001 | B25: 1.5 | C25: 2500 | D25: 1e-10 | E25: 1.832 | G25: 30000
A26: 1.525000.000000001 | B26: 1.5 | C26: 2500 | D26: 1e-09 | E26: 1.172 | G26: 35000
A27: 1.525000.00000001 | B27: 1.5 | C27: 2500 | D27: 1e-08 | E27: 1.024 | G27: 40000
A28: 1.525000.0000001 | B28: 1.5 | C28: 2500 | D28: 1e-07 | E28: 0.969972 | G28: 45000
A29: 1.525000.000001 | B29: 1.5 | C29: 2500 | D29: 1e-06 | E29: 0.957556 | G29: 50000
A30: 1.530000.00000000001 | B30: 1.5 | C30: 3000 | D30: 1e-11 | E30: 5.966667 | G30: 55000
A31: 1.530000.00000000005 | B31: 1.5 | C31: 3000 | D31: 5e-11 | E31: 2.266667 | G31: 60000
A32: 1.530000.0000000001 | B32: 1.5 | C32: 3000 | D32: 1e-10 | E32: 1.73 | G32: 65000
A33: 1.530000.000000001 | B33: 1.5 | C33: 3000 | D33: 1e-09 | E33: 1.146667 | G33: 70000
A34: 1.530000.00000001 | B34: 1.5 | C34: 3000 | D34: 1e-08 | E34: 1.006667 | G34: 75000
A35: 1.530000.0000001 | B35: 1.5 | C35: 3000 | D35: 1e-07 | E35: 0.95613 | G35: 80000
A36: 1.530000.000001 | B36: 1.5 | C36: 3000 | D36: 1e-06 | E36: 0.9459733 | G36: 85000
A37: 1.535000.00000000001 | B37: 1.5 | C37: 3500 | D37: 1e-11 | E37: 5.314286 | G37: 90000
A38: 1.535000.00000000005 | B38: 1.5 | C38: 3500 | D38: 5e-11 | E38: 2.125714 | G38: 95000
A39: 1.535000.0000000001 | B39: 1.5 | C39: 3500 | D39: 1e-10 | E39: 1.657143 | G39: 100000
A40: 1.535000.000000001 | B40: 1.5 | C40: 3500 | D40: 1e-09 | E40: 1.125714 | G40: 105000
A41: 1.535000.00000001 | B41: 1.5 | C41: 3500 | D41: 1e-08 | E41: 0.9942857 | G41: 150000
A42: 1.535000.0000001 | B42: 1.5 | C42: 3500 | D42: 1e-07 | E42: 0.9474914 | G42: 200000
A43: 1.535000.000001 | B43: 1.5 | C43: 3500 | D43: 1e-06 | E43: 0.9378029 | G43: 250000
A44: 1.540000.00000000001 | B44: 1.5 | C44: 4000 | D44: 1e-11 | E44: 4.825 | G44: 300000
A45: 1.540000.00000000005 | B45: 1.5 | C45: 4000 | D45: 5e-11 | E45: 2 | G45: 350000
A46: 1.540000.0000000001 | B46: 1.5 | C46: 4000 | D46: 1e-10 | E46: 1.5975 | G46: 400000
A47: 1.540000.000000001 | B47: 1.5 | C47: 4000 | D47: 1e-09 | E47: 1.1175 | G47: 450000
A48: 1.540000.00000001 | B48: 1.5 | C48: 4000 | D48: 1e-08 | E48: 0.9825 | G48: 500000
A49: 1.540000.0000001 | B49: 1.5 | C49: 4000 | D49: 1e-07 | E49: 0.934195 | G49: 550000
A50: 1.540000.000001 | B50: 1.5 | C50: 4000 | D50: 1e-06 | E50: 0.932195 | G50: 600000
A51: 1.545000.00000000001 | B51: 1.5 | C51: 4500 | D51: 1e-11 | E51: 4.422222 | G51: 650000
A52: 1.545000.00000000005 | B52: 1.5 | C52: 4500 | D52: 5e-11 | E52: 1.92 | G52: 700000
A53: 1.545000.0000000001 | B53: 1.5 | C53: 4500 | D53: 1e-10 | E53: 1.553333 | G53: 750000
A54: 1.545000.000000001 | B54: 1.5 | C54: 4500 | D54: 1e-09 | E54: 1.104444 | G54: 800000
A55: 1.545000.00000001 | B55: 1.5 | C55: 4500 | D55: 1e-08 | E55: 0.9777778 | G55: 850000
A56: 1.545000.0000001 | B56: 1.5 | C56: 4500 | D56: 1e-07 | E56: 0.9322222 | G56: 900000
A57: 1.545000.000001 | B57: 1.5 | C57: 4500 | D57: 1e-06 | E57: 0.9276356 | G57: 950000
A58: 1.550000.00000000001 | B58: 1.5 | C58: 5000 | D58: 1e-11 | E58: 4.22 | G58: 1000000
A59: 1.550000.00000000005 | B59: 1.5 | C59: 5000 | D59: 5e-11 | E59: 1.86 | G59: 1050000
A60: 1.550000.0000000001 | B60: 1.5 | C60: 5000 | D60: 1e-10 | E60: 1.514 | G60: 1500000
A61: 1.550000.000000001 | B61: 1.5 | C61: 5000 | D61: 1e-09 | E61: 1.094 | G61: 2000000
A62: 1.550000.00000001 | B62: 1.5 | C62: 5000 | D62: 1e-08 | E62: 0.972 | G62: 2500000
A63: 1.550000.0000001 | B63: 1.5 | C63: 5000 | D63: 1e-07 | E63: 0.924596 | G63: 3000000
A64: 1.550000.000001 | B64: 1.5 | C64: 5000 | D64: 1e-06 | E64: 0.923942 | G64: 3500000
A65: 1.555000.00000000001 | B65: 1.5 | C65: 5500 | D65: 1e-11 | E65: 4.072727 | G65: 4000000
A66: =B66&C66&D66 -> 1.555000.00000000005 | B66: 1.5 | C66: 5500 | D66: 5e-11 | E66: 1.792727 | G66: 4500000
A67: 1.555000.0000000001 | B67: 1.5 | C67: 5500 | D67: 1e-10 | E67: 1.485455 | G67: 5000000
A68: 1.555000.000000001 | B68: 1.5 | C68: 5500 | D68: 1e-09 | E68: 1.090909 | G68: 5500000
A69: 1.555000.00000001 | B69: 1.5 | C69: 5500 | D69: 1e-08 | E69: 0.9654545 | G69: 6000000
A70: 1.555000.0000001 | B70: 1.5 | C70: 5500 | D70: 1e-07 | E70: 0.9186436 | G70: 6500000
A71: 1.555000.000001 | B71: 1.5 | C71: 5500 | D71: 1e-06 | E71: 0.9204455 | G71: 7000000
A72: 1.560000.00000000001 | B72: 1.5 | C72: 6000 | D72: 1e-11 | E72: 3.9 | G72: 7500000
A73: 1.560000.00000000005 | B73: 1.5 | C73: 6000 | D73: 5e-11 | E73: 1.766667 | G73: 8000000
A74: 1.560000.0000000001 | B74: 1.5 | C74: 6000 | D74: 1e-10 | E74: 1.468333 | G74: 8500000
A75: 1.560000.000000001 | B75: 1.5 | C75: 6000 | D75: 1e-09 | E75: 1.085 | G75: 9000000
A76: 1.560000.00000001 | B76: 1.5 | C76: 6000 | D76: 1e-08 | E76: 0.9616667 | G76: 9500000
A77: 1.560000.0000001 | B77: 1.5 | C77: 6000 | D77: 1e-07 | E77: 0.9184733 | G77: 10000000
A78: 1.560000.000001 | B78: 1.5 | C78: 6000 | D78: 1e-06 | E78: 0.91781 | G78: 10500000
A79: 1.565000.00000000001 | B79: 1.5 | C79: 6500 | D79: 1e-11 | E79: 3.753846
A80: 1.565000.00000000005 | B80: 1.5 | C80: 6500 | D80: 5e-11 | E80: 1.723077
A81: 1.565000.0000000001 | B81: 1.5 | C81: 6500 | D81: 1e-10 | E81: 1.450769
A82: 1.565000.000000001 | B82: 1.5 | C82: 6500 | D82: 1e-09 | E82: 1.075385
A83: 1.565000.00000001 | B83: 1.5 | C83: 6500 | D83: 1e-08 | E83: 0.96
A84: 1.565000.0000001 | B84: 1.5 | C84: 6500 | D84: 1e-07 | E84: 0.9147938
A85: 1.565000.000001 | B85: 1.5 | C85: 6500 | D85: 1e-06 | E85: 0.9147646
A86: 1.570000.00000000001 | B86: 1.5 | C86: 7000 | D86: 1e-11 | E86: 3.614286
A87: 1.570000.00000000005 | B87: 1.5 | C87: 7000 | D87: 5e-11 | E87: 1.677143
A88: 1.570000.0000000001 | B88: 1.5 | C88: 7000 | D88: 1e-10 | E88: 1.428571
A89: 1.570000.000000001 | B89: 1.5 | C89: 7000 | D89: 1e-09 | E89: 1.071429
A90: 1.570000.00000001 | B90: 1.5 | C90: 7000 | D90: 1e-08 | E90: 0.9542857
A91: 1.570000.0000001 | B91: 1.5 | C91: 7000 | D91: 1e-07 | E91: 0.9123743
A92: 1.570000.000001 | B92: 1.5 | C92: 7000 | D92: 1e-06 | E92: 0.9146743
A93: 1.575000.00000000001 | B93: 1.5 | C93: 7500 | D93: 1e-11 | E93: 3.48
A94: 1.575000.00000000005 | B94: 1.5 | C94: 7500 | D94: 5e-11 | E94: 1.661333
A95: 1.575000.0000000001 | B95: 1.5 | C95: 7500 | D95: 1e-10 | E95: 1.4
A96: 1.575000.000000001 | B96: 1.5 | C96: 7500 | D96: 1e-09 | E96: 1.068
A97: 1.575000.00000001 | B97: 1.5 | C97: 7500 | D97: 1e-08 | E97: 0.9533333
A98: 1.575000.0000001 | B98: 1.5 | C98: 7500 | D98: 1e-07 | E98: 0.91172
A99: 1.575000.000001 | B99: 1.5 | C99: 7500 | D99: 1e-06 | E99: 0.9112347
A100: 1.580000.00000000001 | B100: 1.5 | C100: 8000 | D100: 1e-11 | E100: 3.3625
A101: 1.580000.00000000005 | B101: 1.5 | C101: 8000 | D101: 5e-11 | E101: 1.6325
A102: 1.580000.0000000001 | B102: 1.5 | C102: 8000 | D102: 1e-10 | E102: 1.4
A103: 1.580000.000000001 | B103: 1.5 | C103: 8000 | D103: 1e-09 | E103: 1.07
A104: 1.580000.00000001 | B104: 1.5 | C104: 8000 | D104: 1e-08 | E104: 0.94875
A105: 1.580000.0000001 | B105: 1.5 | C105: 8000 | D105: 1e-07 | E105: 0.909035
A106: 1.580000.000001 | B106: 1.5 | C106: 8000 | D106: 1e-06 | E106: 0.9109188
A107: 1.585000.00000000001 | B107: 1.5 | C107: 8500 | D107: 1e-11 | E107: 3.258824
A108: 1.585000.00000000005 | B108: 1.5 | C108: 8500 | D108: 5e-11 | E108: 1.609412
A109: 1.585000.0000000001 | B109: 1.5 | C109: 8500 | D109: 1e-10 | E109: 1.388235
A110: 1.585000.000000001 | B110: 1.5 | C110: 8500 | D110: 1e-09 | E110: 1.064706
A111: 1.585000.00000001 | B111: 1.5 | C111: 8500 | D111: 1e-08 | E111: 0.9470588
A112: 1.585000.0000001 | B112: 1.5 | C112: 8500 | D112: 1e-07 | E112: 0.9068612
A113: 1.585000.000001 | B113: 1.5 | C113: 8500 | D113: 1e-06 | E113: 0.9106894
A114: 1.590000.00000000001 | B114: 1.5 | C114: 9000 | D114: 1e-11 | E114: 3.177778
A115: 1.590000.00000000005 | B115: 1.5 | C115: 9000 | D115: 5e-11 | E115: 1.588889
A116: 1.590000.0000000001 | B116: 1.5 | C116: 9000 | D116: 1e-10 | E116: 1.366667
A117: 1.590000.000000001 | B117: 1.5 | C117: 9000 | D117: 1e-09 | E117: 1.064444
A118: 1.590000.00000001 | B118: 1.5 | C118: 9000 | D118: 1e-08 | E118: 0.9477778
A119: 1.590000.0000001 | B119: 1.5 | C119: 9000 | D119: 1e-07 | E119: 0.9043133
A120: 1.590000.000001 | B120: 1.5 | C120: 9000 | D120: 1e-06 | E120: 0.9103722
A121: 1.595000.00000000001 | B121: 1.5 | C121: 9500 | D121: 1e-11 | E121: 3.084211
A122: 1.595000.00000000005 | B122: 1.5 | C122: 9500 | D122: 5e-11 | E122: 1.574737
A123: 1.595000.0000000001 | B123: 1.5 | C123: 9500 | D123: 1e-10 | E123: 1.357895
A124: 1.595000.000000001 | B124: 1.5 | C124: 9500 | D124: 1e-09 | E124: 1.063158
A125: 1.595000.00000001 | B125: 1.5 | C125: 9500 | D125: 1e-08 | E125: 0.9463158
A126: 1.595000.0000001 | B126: 1.5 | C126: 9500 | D126: 1e-07 | E126: 0.9040768
A127: 1.595000.000001 | B127: 1.5 | C127: 9500 | D127: 1e-06 | E127: 0.9079021
A128: 1.5100000.00000000001 | B128: 1.5 | C128: 10000 | D128: 1e-11 | E128: 3
A129: 1.5100000.00000000005 | B129: 1.5 | C129: 10000 | D129: 5e-11 | E129: 1.552
A130: =B130&C130&D130 -> 1.5100000.0000000001 | B130: 1.5 | C130: 10000 | D130: 1e-10 | E130: 1.36
A131: 1.5100000.000000001 | B131: 1.5 | C131: 10000 | D131: 1e-09 | E131: 1.06
A132: 1.810000.00000001 | B132: 1.8 | C132: 1000 | D132: 1e-08 | E132: 1.13
A133: 2.510000.00000001 | B133: 2.5 | C133: 1000 | D133: 1e-08 | E133: 1.06
A134: 1.5100000.0000001 | B134: 1.5 | C134: 10000 | D134: 1e-07 | E134: 0.905095
A135: 1.5100000.000001 | B135: 1.5 | C135: 10000 | D135: 1e-06 | E135: 0.912052
A136: 1.5105000.00000000001 | B136: 1.5 | C136: 10500 | D136: 1e-11 | E136: 2.942857
A137: 1.5105000.00000000005 | B137: 1.5 | C137: 10500 | D137: 5e-11 | E137: 1.537143
A138: 1.5105000.0000000001 | B138: 1.5 | C138: 10500 | D138: 1e-10 | E138: 1.352381
A139: 1.5105000.000000001 | B139: 1.5 | C139: 10500 | D139: 1e-09 | E139: 1.057143
A140: 1.5105000.00000001 | B140: 1.5 | C140: 10500 | D140: 1e-08 | E140: 0.9447619
A141: 1.5105000.0000001 | B141: 1.5 | C141: 10500 | D141: 1e-07 | E141: 0.9024552
A142: 1.5105000.000001 | B142: 1.5 | C142: 10500 | D142: 1e-06 | E142: 0.90594
A143: 1.5150000.00000000001 | B143: 1.5 | C143: 15000 | D143: 1e-11 | E143: 2.506667
A144: 1.5150000.00000000005 | B144: 1.5 | C144: 15000 | D144: 5e-11 | E144: 1.44
A145: 1.5150000.0000000001 | B145: 1.5 | C145: 15000 | D145: 1e-10 | E145: 1.3
A146: 1.5150000.000000001 | B146: 1.5 | C146: 15000 | D146: 1e-09 | E146: 1.04
A147: 1.5150000.00000001 | B147: 1.5 | C147: 15000 | D147: 1e-08 | E147: 0.93484
A148: 1.5150000.0000001 | B148: 1.5 | C148: 15000 | D148: 1e-07 | E148: 0.8955
A149: 1.5150000.000001 | B149: 1.5 | C149: 15000 | D149: 1e-06 | E149: 0.90132
A150: 1.5200000.00000000001 | B150: 1.5 | C150: 20000 | D150: 1e-11 | E150: 2.25
A151: 1.5200000.00000000005 | B151: 1.5 | C151: 20000 | D151: 5e-11 | E151: 1.39
A152: 1.5200000.0000000001 | B152: 1.5 | C152: 20000 | D152: 1e-10 | E152: 1.275
A153: 1.5200000.000000001 | B153: 1.5 | C153: 20000 | D153: 1e-09 | E153: 1.04
A154: 1.5200000.00000001 | B154: 1.5 | C154: 20000 | D154: 1e-08 | E154: 0.92968
A155: 1.5200000.0000001 | B155: 1.5 | C155: 20000 | D155: 1e-07 | E155: 0.88972
A156: 1.5200000.000001 | B156: 1.5 | C156: 20000 | D156: 1e-06 | E156: 0.896895
A157: 1.5250000.00000000001 | B157: 1.5 | C157: 25000 | D157: 1e-11 | E157: 2.092
A158: 1.5250000.00000000005 | B158: 1.5 | C158: 25000 | D158: 5e-11 | E158: 1.344
A159: 1.5250000.0000000001 | B159: 1.5 | C159: 25000 | D159: 1e-10 | E159: 1.256
A160: 1.5250000.000000001 | B160: 1.5 | C160: 25000 | D160: 1e-09 | E160: 1.036
A161: 1.5250000.00000001 | B161: 1.5 | C161: 25000 | D161: 1e-08 | E161: 0.927524
A162: 1.5250000.0000001 | B162: 1.5 | C162: 25000 | D162: 1e-07 | E162: 0.88836
A163: 1.5250000.000001 | B163: 1.5 | C163: 25000 | D163: 1e-06 | E163: 0.893028
A164: 1.5300000.00000000001 | B164: 1.5 | C164: 30000 | D164: 1e-11 | E164: 1.993333
A165: 1.5300000.00000000005 | B165: 1.5 | C165: 30000 | D165: 5e-11 | E165: 1.326667
A166: 1.5300000.0000000001 | B166: 1.5 | C166: 30000 | D166: 1e-10 | E166: 1.236667
A167: 1.5300000.000000001 | B167: 1.5 | C167: 30000 | D167: 1e-09 | E167: 1.03
A168: 1.5300000.00000001 | B168: 1.5 | C168: 30000 | D168: 1e-08 | E168: 0.9227533
A169: 1.5300000.0000001 | B169: 1.5 | C169: 30000 | D169: 1e-07 | E169: 0.8865333
A170: 1.5300000.000001 | B170: 1.5 | C170: 30000 | D170: 1e-06 | E170: 0.8948867
A171: 1.5350000.00000000001 | B171: 1.5 | C171: 35000 | D171: 1e-11 | E171: 1.914286
A172: 1.5350000.00000000005 | B172: 1.5 | C172: 35000 | D172: 5e-11 | E172: 1.302857
A173: 1.5350000.0000000001 | B173: 1.5 | C173: 35000 | D173: 1e-10 | E173: 1.231429
A174: 1.5350000.000000001 | B174: 1.5 | C174: 35000 | D174: 1e-09 | E174: 1.031429
A175: 1.5350000.00000001 | B175: 1.5 | C175: 35000 | D175: 1e-08 | E175: 0.9185429
A176: 1.5350000.0000001 | B176: 1.5 | C176: 35000 | D176: 1e-07 | E176: 0.8868629
A177: 1.5350000.000001 | B177: 1.5 | C177: 35000 | D177: 1e-06 | E177: 0.8937229
A178: 1.5400000.00000000001 | B178: 1.5 | C178: 40000 | D178: 1e-11 | E178: 1.86
A179: 1.5400000.00000000005 | B179: 1.5 | C179: 40000 | D179: 5e-11 | E179: 1.295
A180: 1.5400000.0000000001 | B180: 1.5 | C180: 40000 | D180: 1e-10 | E180: 1.225
A181: 1.5400000.000000001 | B181: 1.5 | C181: 40000 | D181: 1e-09 | E181: 1.03
A182: 1.5400000.00000001 | B182: 1.5 | C182: 40000 | D182: 1e-08 | E182: 0.9186975
A183: 1.5400000.0000001 | B183: 1.5 | C183: 40000 | D183: 1e-07 | E183: 0.885005
A184: 1.5400000.000001 | B184: 1.5 | C184: 40000 | D184: 1e-06 | E184: 0.8939625
A185: 1.5450000.00000000001 | B185: 1.5 | C185: 45000 | D185: 1e-11 | E185: 1.802222
A186: 1.5450000.00000000005 | B186: 1.5 | C186: 45000 | D186: 5e-11 | E186: 1.284444
A187: 1.5450000.0000000001 | B187: 1.5 | C187: 45000 | D187: 1e-10 | E187: 1.213333
A188: 1.5450000.000000001 | B188: 1.5 | C188: 45000 | D188: 1e-09 | E188: 1.024444
A189: 1.5450000.00000001 | B189: 1.5 | C189: 45000 | D189: 1e-08 | E189: 0.9215356
A190: 1.5450000.0000001 | B190: 1.5 | C190: 45000 | D190: 1e-07 | E190: 0.8860222
A191: 1.5450000.000001 | B191: 1.5 | C191: 45000 | D191: 1e-06 | E191: 0.8918356
A192: 1.5500000.00000000001 | B192: 1.5 | C192: 50000 | D192: 1e-11 | E192: 1.774
A193: 1.5500000.00000000005 | B193: 1.5 | C193: 50000 | D193: 5e-11 | E193: 1.272
A194: =B194&C194&D194 -> 1.5500000.0000000001 | B194: 1.5 | C194: 50000 | D194: 1e-10 | E194: 1.214
A195: 1.5500000.000000001 | B195: 1.5 | C195: 50000 | D195: 1e-09 | E195: 1.024
A196: 1.5500000.00000001 | B196: 1.5 | C196: 50000 | D196: 1e-08 | E196: 0.926792
A197: 1.5500000.0000001 | B197: 1.5 | C197: 50000 | D197: 1e-07 | E197: 0.885984
A198: 1.5500000.000001 | B198: 1.5 | C198: 50000 | D198: 1e-06 | E198: 0.891784
A199: 1.5550000.00000000001 | B199: 1.5 | C199: 55000 | D199: 1e-11 | E199: 1.745455
A200: 1.5550000.00000000005 | B200: 1.5 | C200: 55000 | D200: 5e-11 | E200: 1.269091
... 2759 more rows

Sheet Copyright and Disclaimer
A1: File | B1: TPUL_KFactor_Calculator.xlsm
A2: Revision | B2: 0.1 | C2: Pre-release
A3: Revision Date | B3: 2025-02-01
A4: Source organization | B4: Texas Instruments Incorporated ASC-INT-LOGIC 12500 TI Blvd Dallas, TX 75243
A5: Revision History
A6: Rev 0.1: 02/01/2025 | B6: Initial release
B7: Values are based on simulated operation
A8: Disclaimer | B8: This calculator is designed as an aid for customers of Texas Instruments. TI and its licensors and suppliers make no warranties, either expressed or implied, with respect to this calculator, including the warranties of merchantability or fitness for a particular purpose. The calculator is provided solely on an "as is" basis. The entire risk as to its quality and performance is with the customer.
A9: Copyright | B9: (C) Copyright 2025 Texas Instruments Incorporated. All rights reserved.
